Cogmind - Beta 11 @@@ ROGUE MODE // 2022.03.26 @ 11:30:34 Player: 3.14 Result: Destroyed by G-73 Enforcer with Heavy Laser Performance ------------- Evolutions (8) 4000 Regions Visited (23) 4600 Robots Destroyed (87) 435 Value Destroyed (5421) 5421 Prototype IDs (30) 600 Alien Tech Used (0) 0 Bonus (6413) 6413 TOTAL SCORE: 21469 Bonus ------- High Alert Combat Kills 94 Follower Combat Kills 719 Entered Garrisons 1800 Used RIF Installer 3500 Aligned with FarCom 300 Cogmind --------- Core Integrity 0/1450 Matter 98/300 Energy 99/100 System Corruption 23% Temperature Cool (9) Movement Core (50) Location -2/Garrison Parts ------- > --- POWER (2) -------- (None) > --- PROPULSION (4) --- (None) > --- UTILITY (15) ----- Relay Coupler [Grunt] (33) Relay Coupler [Sentry] (23) Relay Coupler [Sentry] (23) Relay Coupler [Hunter] (17) > --- WEAPON (2) ------- (None) > --- INVENTORY (5) ---- Improved Antigrav System Relay Coupler [ARC] (10) Advanced Remote Datajack Peak State ------------ > --- POWER ------------ Compact Particle Reactor > --- PROPULSION ------- Gyrokinetic Inverter Gyrokinetic Inverter Improved Antigrav System Combat Antigrav System > --- UTILITY ---------- Advanced Heat Sink Large Storage Unit Advanced Target Analyzer Layered Heavy Armor Plating Graphene Brace Relay Coupler [NC] Relay Coupler [ARC] Relay Coupler [Swarmer] Relay Coupler [Grunt] Relay Coupler [Sentry] Relay Coupler [Sentry] Relay Coupler [Hunter] Relay Coupler [Hunter] Relay Coupler [Hunter] > --- WEAPON ----------- Enhanced Quantum Rifle Enhanced Quantum Rifle > --- INVENTORY -------- Micro Antimatter Reactor Improved Antigrav System Improved Antigrav System Advanced Heat Sink Improved Matter Compressor Experimental Reaction Control System Experimental Reaction Control System Relay Coupler [ARC] Relay Coupler [Duelist] Relay Coupler [Demolisher] Relay Coupler [Demolisher] Quantum Rifle Micro-nuke Launcher Advanced Remote Datajack [Rating: 130] Favorites ----------- Power Micro Nuclear Core Engine Ion Engine Power Core Micro Nuclear Core Reactor Compact Particle Reactor Propulsion Combat Airjet Treads Light Treads Leg Aluminum Leg Hover Unit Combat Airjet Flight Unit Q-thruster Utility Relay Coupler [Sentry] Device Microactuators Storage Medium Storage Unit Processor Improved Melee Analysis Suite Hackware Relay Coupler [Sentry] Protection Hardened Medium Armor Plating Weapon Katana Energy Gun Enhanced Quantum Rifle Ballistic Gun Light Assault Rifle Launcher Mini Grenade Launcher Special Weapon Remote Datajack Slashing Weapon Katana Special Melee Weapon Datajack Build | -11 -10 -10 -10 -9 -8 -8 -7 -7 -7 -7 -6 -6 -6 -6 -5 -5 -5 -5 -4 -4 -3 -2 -2 ------- Run | Scr Mat Min Exi Min Mat Gar Fac Gar Fac Gar Fac Gar Fac Gar Fac Gar Fac Gar Fac Gar Res Res Gar Slots Evolved 16 | . . . . . 4 . 2 . . . 2 . . . 2 . . . 2 . 2 2 . Power 1 | . . . . . . . . . . . . . . . . . . . . . . 1 . Propulsion 2 | . . . . . 1 . 1 . . . . . . . . . . . . . . . . Utility 13 | . . . . . 3 . 1 . . . 2 . . . 2 . . . 2 . 2 1 . Weapon . | . . . . . . . . . . . . . . . . . . . . . . . . Parts Attached 212 | 7 5 7 4 . 11 . 10 6 12 17 2 9 2 8 21 8 2 12 4 8 4 44 9 Power 15 | 1 . 1 . . . . 1 . . 1 . . . . 3 . . . . . . 8 . Engine 4 | 1 . 1 . . . . 1 . . . . . . . 1 . . . . . . . . Core 4 | . . . . . . . . . . 1 . . . . 2 . . . . . . 1 . Reactor 7 | . . . . . . . . . . . . . . . . . . . . . . 7 . Propulsion 44 | 2 . 4 . . 1 . 3 . 3 1 1 . 1 . 3 1 2 1 . 2 1 14 4 Treads 2 | 2 . . . . . . . . . . . . . . . . . . . . . . . Leg 2 | . . 2 . . . . . . . . . . . . . . . . . . . . . Wheel . | . . . . . . . . . . . . . . . . . . . . . . . . Hover 34 | . . 2 . . 1 . 3 . 2 1 1 . 1 . 3 1 2 1 . 2 1 10 3 Flight 6 | . . . . . . . . . 1 . . . . . . . . . . . . 4 1 Utility 78 | 2 3 2 2 . 4 . 5 2 6 2 1 5 1 4 9 1 . 5 3 6 3 8 4 Device 12 | 1 1 . . . . . 2 . 2 . . 1 . . . . . . 1 . 1 3 . Storage 11 | 1 1 2 2 . . . . . . . . . . . 3 . . . 1 . 1 . . Processor 9 | . 1 . . . . . 1 . 2 . . . . . 3 . . . . . 1 1 . Hackware 32 | . . . . . 1 . 1 1 1 . 1 3 . 4 1 1 . 5 1 5 . 3 4 Protection 14 | . . . . . 3 . 1 1 1 2 . 1 1 . 2 . . . . 1 . 1 . Artifact . | . . . . . . . . . . . . . . . . . . . . . . . . Weapon 75 | 2 2 . 2 . 6 . 1 4 3 13 . 4 . 4 6 6 . 6 1 . . 14 1 Energy Gun 10 | . . . . . . . . . . . . . . . . . . . . . . 10 . Energy Cannon . | . . . . . . . . . . . . . . . . . . . . . . . . Ballistic Gun 10 | 2 1 . 2 . 5 . . . . . . . . . . . . . . . . . . Ballistic Cannon . | . . . . . . . . . . . . . . . . . . . . . . . . Launcher 18 | . 1 . . . 1 . . 2 . 5 . 1 . 2 . 2 . 2 . . . 2 . Special Weapon 16 | . . . . . . . . . 1 1 . 3 . 2 1 3 . 2 1 . . 1 1 Impact Weapon . | . . . . . . . . . . . . . . . . . . . . . . . . Slashing Weapon 20 | . . . . . . . 1 2 1 7 . . . . 5 1 . 2 . . . 1 . Piercing Weapon . | . . . . . . . . . . . . . . . . . . . . . . . . Special Melee Weapon 1 | . . . . . . . . . 1 . . . . . . . . . . . . . . Unidentified Prototypes 3 | . . . . . . . 1 . . . . . . . 1 . . . . . . 1 . Parts Lost 32 | . . . . . . . 1 1 . 1 . . . . 2 1 . 2 . 1 . 21 2 Power 4 | . . . . . . . . . . . . . . . . . . . . . . 4 . Propulsion 13 | . . . . . . . 1 1 . 1 . . . . . . . . . 1 . 7 2 Utility 12 | . . . . . . . . . . . . . . . 2 1 . 2 . . . 7 . Weapon 3 | . . . . . . . . . . . . . . . . . . . . . . 3 . Highest Loss Streak 8 | . . . . . . . 1 1 . 1 . . . . 1 1 . 1 . 1 . 8 1 To Critical Strikes . | . . . . . . . . . . . . . . . . . . . . . . . . Average Slot Usage (%) 86 | . 98 84 69 85 69 81 91 96 98 93 90 97 99 93 91 91 98 94 87 90 90 79 20 Engine 4 | . 14 12 14 14 9 9 7 7 7 6 . . . . 1 . . . . . . . . Core 2 | . . . . . . . . . . . 6 6 6 6 3 5 5 5 5 5 4 . . Treads 2 | . 28 20 . . . . . . . . . . . . . . . . . . . . . Hover 19 | . . 4 28 28 27 27 30 28 27 24 24 26 25 20 17 16 21 23 21 20 19 14 2 Device 2 | . 7 . . . . . 7 7 7 6 . 3 6 . . . . . 3 5 4 4 . Storage 6 | . 14 12 14 14 9 9 7 7 7 7 6 6 6 6 4 5 5 5 5 5 4 3 . Processor 7 | . 5 10 . . . . 4 7 11 15 13 13 13 8 7 17 17 4 . . . 4 . Hackware 21 | . . . . . 2 9 11 15 11 7 12 15 20 29 35 29 35 42 42 43 42 36 13 Protection 4 | . . . . . 4 9 10 7 6 7 13 11 6 6 5 2 . . . . 4 2 . Ballistic Gun 4 | . 28 20 12 28 17 18 3 . . . . . . . . . . . . . . . . Special Weapon 2 | . . . . . . . . . . 1 . 4 6 4 3 2 5 4 3 5 4 2 2 Slashing Weapon 5 | . . . . . . . 6 11 10 12 13 7 6 6 6 8 5 5 5 5 4 1 . Naked Turns 51 | . . 2 . . . . . . . . . . . . . . . . . . . 45 4 Heaviest Build 66 | 14 18 18 17 17 29 29 39 35 35 36 36 39 31 31 41 39 32 39 39 40 40 66 5 Greatest Support 56 | 40 40 40 24 24 36 36 43 42 43 45 45 45 45 44 46 42 46 56 46 46 42 50 12 Greatest Overweight (x) 1 | . . . . . . . . . . . . . . . 1 . . . . . . 1 1 Average Overweight (x) . | . . . . . . . . . . . . . . . . . . . . . . . . Largest Inventory Capacity 15 | 8 10 10 15 10 10 10 10 10 10 10 10 10 10 10 15 15 15 15 15 15 15 15 5 Average Capacity 11 | 6 8 9 10 10 10 10 10 10 10 10 10 10 10 10 14 15 15 15 15 15 15 13 5 Most Carried 15 | 4 9 10 9 10 10 10 10 10 10 10 10 10 10 10 15 15 15 15 15 15 15 15 5 Average Carried 10 | 1 6 8 8 9 9 10 9 9 9 9 9 9 9 9 14 14 14 14 14 14 14 13 2 Final Capacity 15 | 8 10 10 10 10 10 10 10 10 10 10 10 10 10 10 15 15 15 15 15 15 15 5 5 Final Carried 15 | 4 9 9 9 10 10 10 10 10 10 10 10 10 10 10 14 15 15 15 15 15 14 4 3 Class Distribution -------------------- 41% | Botlord-Mutant 26% | Mutant 15% | Scavenger-Mutant 9% | Botlord-Scout 6% | Bothacker-Mutant Dominant Class ---------------- Mutant | -10/Materials Mutant | -10/Mines Mutant | -10/Exiles Mutant | -9/Mines Scavenger-Mutant | -8/Materials Scavenger-Mutant | -8/Garrison Scavenger-Mutant | -7/Factory Scavenger-Mutant | -7/Garrison Scavenger-Mutant | -7/Factory Mutant | -7/Garrison Bothacker-Mutant | -6/Factory Bothacker-Mutant | -6/Garrison Botlord-Mutant | -6/Factory Botlord-Mutant | -6/Garrison Botlord-Mutant | -5/Factory Botlord-Scout | -5/Garrison Botlord-Scout | -5/Factory Botlord-Mutant | -5/Garrison Botlord-Mutant | -4/Factory Botlord-Mutant | -4/Garrison Botlord-Mutant | -3/Research Botlord-Mutant | -2/Research Botlord-Mutant | -2/Garrison Resources | -11 -10 -10 -10 -9 -8 -8 -7 -7 -7 -7 -6 -6 -6 -6 -5 -5 -5 -5 -4 -4 -3 -2 -2 ----------- Run | Scr Mat Min Exi Min Mat Gar Fac Gar Fac Gar Fac Gar Fac Gar Fac Gar Fac Gar Fac Gar Res Res Gar Matter Collected 3603 | 278 121 168 . 40 66 . 214 42 106 417 20 73 18 229 276 247 . 446 173 138 . 531 . Remotely . | . . . . . . . . . . . . . . . . . . . . . . . . Salvage Created 3582 | 86 196 . . . 66 . 260 50 106 365 140 172 18 202 482 110 . 209 . 208 . 912 . Parts 207 | 6 27 . . . 9 . 12 . 2 32 8 13 2 7 22 9 . 9 . 5 . 44 . Haulers Intercepted 6 | . . . . . 1 . 1 . . . 1 . . . 2 . . . . . . 1 . Recyclers Shooed 7 | . 2 . . . . . 1 . 1 . . . . . . . . . . . . 3 . Parts Field Recycled . | . . . . . . . . . . . . . . . . . . . . . . . . Retrieved Matter . | . . . . . . . . . . . . . . . . . . . . . . . . Parts Self-Destructed . | . . . . . . . . . . . . . . . . . . . . . . . . Prevented . | . . . . . . . . . . . . . . . . . . . . . . . . Kills | -11 -10 -10 -10 -9 -8 -8 -7 -7 -7 -7 -6 -6 -6 -6 -5 -5 -5 -5 -4 -4 -3 -2 -2 ------- Run | Scr Mat Min Exi Min Mat Gar Fac Gar Fac Gar Fac Gar Fac Gar Fac Gar Fac Gar Fac Gar Res Res Gar Combat Hostiles Destroyed 63 | . 9 . . . . . . 2 . 16 . 4 . 6 3 6 . 4 . 3 . 10 . Melee 19 | . . . . . . . . 1 . 2 . 3 . 1 3 1 . 2 . 3 . 3 . Guns 10 | . 6 . . . . . . . . . . . . . . . . . . . . 4 . AOE 34 | . 3 . . . . . . 1 . 14 . 1 . 5 . 5 . 2 . . . 3 . Classes Destroyed 15 | 2 4 . . . 2 . . . . 2 . 2 1 . . 1 . . . . . 1 . Worker 3 | . . . . . . . . . . . . . 1 . 1 . . . . . . 1 . Builder 4 | . 2 . . . . . . . . . 1 . . . 1 . . . . . . . . Tunneler 2 | 1 . . . . . . 1 . . . . . . . . . . . . . . . . Hauler 6 | . . . . . 1 . 1 . . . 1 . . . 2 . . . . . . 1 . Recycler 5 | 1 . . . . . . 2 . 1 . . . . . . . . . . . . 1 . Operator 1 | . . . . . 1 . . . . . . . . . . . . . . . . . . Watcher 3 | . 1 . . . . . 1 . 1 . . . . . . . . . . . . . . Swarmer 19 | . 6 . . . . . . . . 8 . 1 . 3 . 1 . . . . . . . Cutter 4 | . . . . . . . . . . . . . . . . 4 . . . . . . . Grunt 19 | . 3 . . . . . . 2 . 6 . . . 3 . . . 2 . 1 . 2 . Brawler 2 | . . . . . . . . . . 1 . . . . . . . 1 . . . . . Duelist 1 | . . . . . . . . . . . . . . . . . . . . . . 1 . Sentry 2 | . . . . . . . . . . . . 1 . . . . . . . 1 . . . Hunter 3 | . . . . . . . . . . . . 2 . . . . . . . 1 . . . Programmer 13 | . . . . . . . . . . 1 . . . . 3 1 . 1 . . . 7 . Best Kill Streak 5 | 2 5 . . . 1 . 3 2 1 4 1 1 1 3 2 4 . 3 . 1 . 3 . Combat Bots Only 4 | . 3 . . . . . . 2 . 4 . 1 . 3 2 4 . 3 . 1 . 3 . Max Kills in Single Turn 3 | 1 3 . . . 1 . 1 1 1 2 1 1 1 2 1 2 . 2 . 1 . 3 . Gunslinging . | . . . . . . . . . . . . . . . . . . . . . . . . Exploded 3 | . 2 . . . . . . 1 . 2 . 1 . 2 . 2 . 2 . . . 3 . Melee 1 | . . . . . . . . 1 . 1 . 1 . 1 1 1 . 1 . 1 . 1 . Uniques/NPCs Destroyed . | . . . . . . . . . . . . . . . . . . . . . . . . Combat | -11 -10 -10 -10 -9 -8 -8 -7 -7 -7 -7 -6 -6 -6 -6 -5 -5 -5 -5 -4 -4 -3 -2 -2 -------- Run | Scr Mat Min Exi Min Mat Gar Fac Gar Fac Gar Fac Gar Fac Gar Fac Gar Fac Gar Fac Gar Res Res Gar Damage Taken 8244 | . 325 161 . . 60 . 176 226 . 402 147 370 . 76 911 651 . 361 . 396 . 3490 492 Core 2261 | . 54 55 . . . . 52 30 . 61 . 29 . 20 122 162 . 77 . 131 . 1073 395 Absorbed by Shields 34 | . . . . . . . . 14 . . . . . . . 20 . . . . . . . Regen/Repaired (Parts) 370 | . . . . . . . . . . . 70 . . . 300 . . . . . . . . Core Remaining (%) 85 | 100 . . . 56 . 100 . . . 79 . . . 94 . . . 63 . 88 100 . . Volleys Fired 173 | 2 29 . . . 8 . 2 4 . 19 . 10 . 10 8 13 2 10 1 9 2 44 . Largest 2 | 2 2 . . . 2 . 2 1 . 1 . 1 . 1 1 1 1 1 1 1 1 2 . Hottest 130 | 40 40 . . . 48 . 50 30 . 30 . 30 . 30 5 43 7 49 7 7 7 130 . Shots Fired 223 | 4 56 . . . 14 . 4 4 . 19 . 10 . 10 8 13 2 9 1 9 2 58 . Gun 115 | 4 54 . . . 12 . 4 . . . . . . . . . . . . . . 41 . Cannon . | . . . . . . . . . . . . . . . . . . . . . . . . Launcher 42 | . 2 . . . 2 . . 4 . 18 . 2 . 4 . 5 . 2 . . . 3 . Special 66 | . . . . . . . . . . 1 . 8 . 6 8 8 2 7 1 9 2 14 . Kinetic 74 | 4 54 . . . 12 . 4 . . . . . . . . . . . . . . . . Thermal 41 | . . . . . . . . . . . . . . . . . . . . . . 41 . Explosive 42 | . 2 . . . 2 . . 4 . 18 . 2 . 4 . 5 . 2 . . . 3 . Electromagnetic . | . . . . . . . . . . . . . . . . . . . . . . . . Robot Hit Streak 20 | 3 5 . . . 4 . 1 2 . 5 . 7 . 5 7 3 5 7 2 10 1 20 . Robot Miss Streak 4 | . 4 . . . 2 . 3 1 . 2 . . . 1 1 3 . 1 . . 1 2 . Penetration Max . | . . . . . . . . . . . . . . . . . . . . . . . . Secondary Targets 1 | . 1 . . . . . . . . . . . . . . . . . . . . . . Max Gunslinging Chain 1 | . 1 . . . . . . . . . . . . . . . . . . . . . . Shots Hit Robots 256 | 3 31 . . . 7 . 10 3 5 11 9 11 2 7 49 13 2 13 2 18 1 59 . Core Hits 146 | 3 15 . . . 4 . 6 4 1 31 3 5 1 11 12 8 . 8 . 4 . 30 . Critical Kills . | . . . . . . . . . . . . . . . . . . . . . . . . Critical Parts Destroyed . | . . . . . . . . . . . . . . . . . . . . . . . . Critical Strikes 9 | . . . . . . . . 1 . . 1 . . . 5 . . . . . . 2 . Burn 1 | . . . . . . . . . . . . . . . . . . . . . . 1 . Sever 8 | . . . . . . . . 1 . . 1 . . . 5 . . . . . . 1 . Melee Attacks 223 | . . . . . . . 17 18 5 16 11 11 5 4 74 8 . 12 2 14 . 26 . Impact . | . . . . . . . . . . . . . . . . . . . . . . . . Slashing 222 | . . . . . . . 17 18 4 16 11 11 5 4 74 8 . 12 2 14 . 26 . Piercing . | . . . . . . . . . . . . . . . . . . . . . . . . Sneak Attacks 25 | . . . . . . . 6 . 1 . 3 1 1 . 8 . . . . 3 . 2 . Combat Hostiles 4 | . . . . . . . . . . . . 1 . . . . . . . 3 . . . Follow-up Attacks 6 | . . . . . . . . . . . 1 . . . 4 1 . . . . . . . Damage Inflicted 10260 | 29 477 . . . 89 . 542 227 161 1288 422 374 101 462 1772 872 . 555 37 471 . 2354 27 Guns 1612 | 29 331 . . . 89 . 18 . . . . . . . . . . . . . . 1145 . Cannons . | . . . . . . . . . . . . . . . . . . . . . . . . Explosions 3562 | . 141 . . . . . . 159 . 1222 . 100 . 399 . 624 . 282 . . . 635 . Melee 5030 | . . . . . . . 524 68 161 66 422 274 101 63 1771 248 . 273 37 471 . 551 . Ramming 56 | . 5 . . . . . . . . . . . . . 1 . . . . . . 23 27 Kinetic 467 | 29 331 . . . 89 . 18 . . . . . . . . . . . . . . . . Thermal 1145 | . . . . . . . . . . . . . . . . . . . . . . 1145 . Explosive 3562 | . 141 . . . . . . 159 . 1222 . 100 . 399 . 624 . 282 . . . 635 . Electromagnetic . | . . . . . . . . . . . . . . . . . . . . . . . . Impact . | . . . . . . . . . . . . . . . . . . . . . . . . Slashing 5030 | . . . . . . . 524 68 161 66 422 274 101 63 1771 248 . 273 37 471 . 551 . Piercing . | . . . . . . . . . . . . . . . . . . . . . . . . Highest Corruption 23 | . . . . . . . . . . 1 . . . . 14 18 18 19 . . . 16 23 Average Corruption 13 | . . . . . . . . . . 1 . . . . 8 16 18 18 . . . 7 21 Corruption Purged . | . . . . . . . . . . . . . . . . . . . . . . . . Corruption Blocked . | . . . . . . . . . . . . . . . . . . . . . . . . Effects 99 | . . . . . . . . . . 1 . . . . 13 14 4 25 . . . 25 17 Message Errors 19 | . . . . . . . . . . . . . . . 2 2 1 6 . . . 4 4 Matter Fused 25 | . . . . . . . . . . . . . . . 5 4 1 4 . . . 7 4 Heat Flow Errors 11 | . . . . . . . . . . . . . . . 2 . . 5 . . . 2 2 Energy Discharges 18 | . . . . . . . . . . 1 . . . . 3 5 . 3 . . . 2 4 Data Loss (minor) 5 | . . . . . . . . . . . . . . . . 2 . 1 . . . 1 1 Data Loss (major) 10 | . . . . . . . . . . . . . . . 1 1 1 2 . . . 4 1 Misfires 1 | . . . . . . . . . . . . . . . . . . . . . . 1 . Alerts 2 | . . . . . . . . . . . . . . . . . 1 1 . . . . . Misdirections 7 | . . . . . . . . . . . . . . . . . . 2 . . . 4 1 Weapon Failures 1 | . . . . . . . . . . . . . . . . . . 1 . . . . . Overload Shots . | . . . . . . . . . . . . . . . . . . . . . . . . Overflow Damage 464 | . . . . . . . 86 . 70 6 . 5 27 . 95 95 . 15 . . . 65 . Projectiles . | . . . . . . . . . . . . . . . . . . . . . . . . Explosions 104 | . . . . . . . . . . 6 . 3 . . . 95 . . . . . . . Melee 360 | . . . . . . . 86 . 70 . . 2 27 . 95 . . 15 . . . 65 . Knockbacks 1 | . . . . . . . . . . . . . . . . . . . . . . 1 . Impact 1 | . . . . . . . . . . . . . . . . . . . . . . 1 . Kinetic . | . . . . . . . . . . . . . . . . . . . . . . . . Secondary . | . . . . . . . . . . . . . . . . . . . . . . . . Self-Inflicted Damage 374 | . . . . . . . . 104 . 96 . . . . . 136 . . . . . 11 27 Shots 8 | . . . . . . . . 3 . 2 . . . . . 3 . . . . . . . Rammed 4 | . 2 . . . . . . . . . . . . . 1 . . . . . . 1 . Targets Rammed 5 | . 3 . . . . . . . . . . . . . 1 . . . . . . 1 . Kicked . | . . . . . . . . . . . . . . . . . . . . . . . . Crushed 1 | . 1 . . . . . . . . . . . . . . . . . . . . . . Highest Temperature 247 | . 13 . . . 12 . 14 . . . . . . 1 208 . . 247 . . . 232 245 Average Temperature 91 | . 8 . . . 6 . 9 . . . . . . 1 105 . . 101 . . . 98 130 Received Heat Transfer 679 | . 96 40 . . 18 . 30 45 . 45 12 . . 27 9 12 . 81 . 57 . 162 45 Siege Activations . | . . . . . . . . . . . . . . . . . . . . . . . . Robots Corrupted . | . . . . . . . . . . . . . . . . . . . . . . . . Combat Hostiles . | . . . . . . . . . . . . . . . . . . . . . . . . Parts Fried . | . . . . . . . . . . . . . . . . . . . . . . . . Impact Corruptions . | . . . . . . . . . . . . . . . . . . . . . . . . Robots Melted . | . . . . . . . . . . . . . . . . . . . . . . . . Combat Hostiles . | . . . . . . . . . . . . . . . . . . . . . . . . Parts Melted 5 | . . . . . . . . . . . . . . . . . . . . . . 5 . Heat Transferred 1295 | . . . . . . . . . . . . . . . . . . . . . . 1295 . Parts Sabotaged . | . . . . . . . . . . . . . . . . . . . . . . . . Parts Stolen . | . . . . . . . . . . . . . . . . . . . . . . . . Parts Stripped . | . . . . . . . . . . . . . . . . . . . . . . . . Power Chain Reactions . | . . . . . . . . . . . . . . . . . . . . . . . . Missiles Intercepted . | . . . . . . . . . . . . . . . . . . . . . . . . Alert | -11 -10 -10 -10 -9 -8 -8 -7 -7 -7 -7 -6 -6 -6 -6 -5 -5 -5 -5 -4 -4 -3 -2 -2 ------- Run | Scr Mat Min Exi Min Mat Gar Fac Gar Fac Gar Fac Gar Fac Gar Fac Gar Fac Gar Fac Gar Res Res Gar Peak Influence 620 | 10 314 137 . . 166 107 262 365 234 620 353 450 243 508 415 506 310 432 264 281 172 398 323 Initial 325 | . 6 122 . . . 107 56 183 191 163 325 247 235 170 266 192 265 217 234 90 157 96 268 Average 247 | 8 136 109 . . 59 107 149 271 212 436 332 324 239 380 265 404 276 288 208 177 171 151 299 Maximum Alert Level 2 | . 1 . . . . . 1 1 1 2 1 2 1 2 2 2 1 2 1 1 . 1 1 Low Security (%) 35 | 100 61 100 . 100 100 100 73 16 25 5 . . . 14 3 4 . 5 34 53 100 76 . Level 1 49 | . 38 . . . . . 26 83 74 20 100 87 100 38 91 40 100 90 65 46 . 23 100 Level 2 14 | . . . . . . . . . . 74 . 12 . 46 5 55 . 3 . . . . . Level 3 . | . . . . . . . . . . . . . . . . . . . . . . . . Level 4 . | . . . . . . . . . . . . . . . . . . . . . . . . Level 5 . | . . . . . . . . . . . . . . . . . . . . . . . . High Security . | . . . . . . . . . . . . . . . . . . . . . . . . Max Security . | . . . . . . . . . . . . . . . . . . . . . . . . Squads Dispatched 16 | . 1 . . . 1 . 1 . 1 . . . . . 5 . . . 1 . 1 5 . Investigation 4 | . 1 . . . . . . . . . . . . . 2 . . . 1 . . . . Extermination 6 | . . . . . . . . . 1 . . . . . 2 . . . . . . 3 . Reinforcement 5 | . . . . . 1 . . . . . . . . . 1 . . . . . 1 2 . Assault . | . . . . . . . . . . . . . . . . . . . . . . . . Garrison 1 | . . . . . . . 1 . . . . . . . . . . . . . . . . Intercept . | . . . . . . . . . . . . . . . . . . . . . . . . Searches Triggered . | . . . . . . . . . . . . . . . . . . . . . . . . Construction Impeded . | . . . . . . . . . . . . . . . . . . . . . . . . Haulers Reinforced 1 | . . . . . . . . . . . . . . . . . . . . . . 1 . Active Scanning Responses . | . . . . . . . . . . . . . . . . . . . . . . . . Cargo Convoy Interrupts . | . . . . . . . . . . . . . . . . . . . . . . . . Stealth | -11 -10 -10 -10 -9 -8 -8 -7 -7 -7 -7 -6 -6 -6 -6 -5 -5 -5 -5 -4 -4 -3 -2 -2 --------- Run | Scr Mat Min Exi Min Mat Gar Fac Gar Fac Gar Fac Gar Fac Gar Fac Gar Fac Gar Fac Gar Res Res Gar Distress Signals 6 | . 2 . . . . . 2 . . . . . . . . . . . . . . 2 . Communications Jammed 59 | . . . . . . . . . . . . . . . 35 . . . . . . 24 . Distress Signals 57 | . . . . . . . . . . . . . . . 33 . . . . . . 24 . Times Spotted 208 | . 16 18 . . 10 . 10 5 2 15 1 5 . 10 18 8 3 14 3 11 1 49 9 Peak Tracking Total 18 | . 5 18 . . 4 . 5 6 2 4 1 3 . 7 4 4 3 4 2 4 . 17 9 Tactical Retreats 23 | . 1 2 . . 1 . 4 2 . 2 . 1 . . 3 . 1 3 . . . 3 . Traps | -11 -10 -10 -10 -9 -8 -8 -7 -7 -7 -7 -6 -6 -6 -6 -5 -5 -5 -5 -4 -4 -3 -2 -2 ------- Run | Scr Mat Min Exi Min Mat Gar Fac Gar Fac Gar Fac Gar Fac Gar Fac Gar Fac Gar Fac Gar Res Res Gar Traps Triggered 21 | . 1 . . . . 2 2 2 . 1 . 1 . 2 . 3 . 1 . 2 . 2 2 Indirectly . | . . . . . . . . . . . . . . . . . . . . . . . . Trap Hack Attempts . | . . . . . . . . . . . . . . . . . . . . . . . . Triggered . | . . . . . . . . . . . . . . . . . . . . . . . . Disarmed . | . . . . . . . . . . . . . . . . . . . . . . . . Reprogrammed . | . . . . . . . . . . . . . . . . . . . . . . . . Reused . | . . . . . . . . . . . . . . . . . . . . . . . . Traps Extracted . | . . . . . . . . . . . . . . . . . . . . . . . . Installed . | . . . . . . . . . . . . . . . . . . . . . . . . Triggered . | . . . . . . . . . . . . . . . . . . . . . . . . Machines | -11 -10 -10 -10 -9 -8 -8 -7 -7 -7 -7 -6 -6 -6 -6 -5 -5 -5 -5 -4 -4 -3 -2 -2 ---------- Run | Scr Mat Min Exi Min Mat Gar Fac Gar Fac Gar Fac Gar Fac Gar Fac Gar Fac Gar Fac Gar Res Res Gar Machines Disabled 15 | . . . . . 2 . . 1 . 1 . 2 . 2 . 1 . 1 1 2 . 1 1 Max in Single Turn 1 | . . . . . 1 . . 1 . 1 . 1 . 1 . 1 . 1 1 1 . 1 1 Garrison Relay 11 | . . . . . . . . 1 . 1 . 2 . 2 . 1 . 1 . 2 . . 1 Machines Sabotaged . | . . . . . . . . . . . . . . . . . . . . . . . . Garrisons Compromised . | . . . . . . . . . . . . . . . . . . . . . . . . Overloaded Fab Kills . | . . . . . . . . . . . . . . . . . . . . . . . . Hacking | -11 -10 -10 -10 -9 -8 -8 -7 -7 -7 -7 -6 -6 -6 -6 -5 -5 -5 -5 -4 -4 -3 -2 -2 --------- Run | Scr Mat Min Exi Min Mat Gar Fac Gar Fac Gar Fac Gar Fac Gar Fac Gar Fac Gar Fac Gar Res Res Gar Machines Accessed 33 | . . 1 2 . 3 . 2 . 5 . 3 . 2 . 6 . 3 . 3 . 1 2 . Terminals 13 | . . . . . 2 . 1 . 2 . 1 . 1 . 3 . . . 2 . . 1 . Fabricators 4 | . . . . . . . . . 1 . . . . . 1 . 1 . . . 1 . . Repair Stations 3 | . . . . . . . . . . . 1 . . . 1 . 1 . . . . . . Recycling Units . | . . . . . . . . . . . . . . . . . . . . . . . . Scanalyzers 1 | . . . . . . . . . 1 . . . . . . . . . . . . . . Garrison Access 9 | . . . . . 1 . 1 . 1 . 1 . 1 . 1 . 1 . 1 . . 1 . Total Hacks 57 | . . 1 2 . 6 . 4 . 8 . 6 . 3 . 11 . 4 . 7 . 1 4 . Successful 26 | . . 1 2 . 3 . 2 . 3 . 3 . 1 . 5 . 1 . 2 . . 3 . Failed 31 | . . . . . 3 . 2 . 5 . 3 . 2 . 6 . 3 . 5 . 1 1 . Catastrophic 8 | . . . . . . . . . 1 . . . . . 3 . 1 . 1 . 1 1 . Database Lockouts . | . . . . . . . . . . . . . . . . . . . . . . . . Manual 13 | . . . 1 . 5 . . . . . . . . . 1 . . . 3 . . 3 . Terminals 29 | . . . . . 5 . 3 . 3 . 2 . 2 . 5 . . . 6 . . 3 . Fabricators 6 | . . . . . . . . . 2 . . . . . 2 . 1 . . . 1 . . Repair Stations 8 | . . . . . . . . . . . 3 . . . 3 . 2 . . . . . . Recycling Units . | . . . . . . . . . . . . . . . . . . . . . . . . Scanalyzers 2 | . . . . . . . . . 2 . . . . . . . . . . . . . . Garrison Access 9 | . . . . . 1 . 1 . 1 . 1 . 1 . 1 . 1 . 1 . . 1 . Terminal Hacks 6 | . . 1 2 . . . 1 . . . . . . . . . . . 1 . . 1 . Record 2 | . . . 1 . . . 1 . . . . . . . . . . . . . . . . Open Door 1 | . . 1 . . . . . . . . . . . . . . . . . . . . . Terminal Index 1 | . . . . . . . . . . . . . . . . . . . . . . 1 . Unreport Threat 1 | . . . . . . . . . . . . . . . . . . . 1 . . . . EX-Prototype ID Bank 1 | . . . 1 . . . . . . . . . . . . . . . . . . . . Fabricator Hacks 2 | . . . . . . . . . . . . . . . 2 . . . . . . . . Load Schematic 1 | . . . . . . . . . . . . . . . 1 . . . . . . . . Build 1 | . . . . . . . . . . . . . . . 1 . . . . . . . . Repair Station Hacks 4 | . . . . . . . . . . . 2 . . . 2 . . . . . . . . Scan Component 2 | . . . . . . . . . . . 1 . . . 1 . . . . . . . . Repair 2 | . . . . . . . . . . . 1 . . . 1 . . . . . . . . Recycling Unit Hacks . | . . . . . . . . . . . . . . . . . . . . . . . . Scanalyzer 2 | . . . . . . . . . 2 . . . . . . . . . . . . . . Insert Component 1 | . . . . . . . . . 1 . . . . . . . . . . . . . . Analyze 1 | . . . . . . . . . 1 . . . . . . . . . . . . . . Garrison Access Hacks 9 | . . . . . 1 . 1 . 1 . 1 . 1 . 1 . 1 . 1 . . 1 . Unlock Access 9 | . . . . . 1 . 1 . 1 . 1 . 1 . 1 . 1 . 1 . . 1 . Unauthorized Hacks 3 | . . . . . 2 . . . . . . . . . . . . . . . . 1 . Terminals 3 | . . . . . 2 . . . . . . . . . . . . . . . . 1 . Botnet 3 | . . . . . 2 . . . . . . . . . . . . . . . . 1 . Fabricators . | . . . . . . . . . . . . . . . . . . . . . . . . Repair Stations . | . . . . . . . . . . . . . . . . . . . . . . . . Recycling Units . | . . . . . . . . . . . . . . . . . . . . . . . . Scanalyzers . | . . . . . . . . . . . . . . . . . . . . . . . . Garrison Access . | . . . . . . . . . . . . . . . . . . . . . . . . Data Cores Recovered . | . . . . . . . . . . . . . . . . . . . . . . . . Used . | . . . . . . . . . . . . . . . . . . . . . . . . Hacking Detections 22 | . . . . . 2 . 2 . 4 . 2 . 1 . 4 . 2 . 2 . 1 2 . Full Trace Events 3 | . . . . . . . . . . . . . . . 2 . . . 1 . . . . Feedback Events . | . . . . . . . . . . . . . . . . . . . . . . . . Feedback Blocked . | . . . . . . . . . . . . . . . . . . . . . . . . Robot Schematics Acquired . | . . . . . . . . . . . . . . . . . . . . . . . . Robots Built . | . . . . . . . . . . . . . . . . . . . . . . . . Authchips . | . . . . . . . . . . . . . . . . . . . . . . . . Time . | . . . . . . . . . . . . . . . . . . . . . . . . Total Robot Build Rating . | . . . . . . . . . . . . . . . . . . . . . . . . Part Schematics Acquired 1 | . . . . . . . . . 1 . . . . . . . . . . . . . . Parts Built 2 | . . . . . . . . . . . . . . . 2 . . . . . . . . Authchips . | . . . . . . . . . . . . . . . . . . . . . . . . Time 95 | . . . . . . . . . . . . . . . 95 . . . . . . . . Total Part Build Rating 10 | . . . . . . . . . . . . . . . 10 . . . . . . . . Parts Repaired 2 | . . . . . . . . . . . 1 . . . 1 . . . . . . . . Time 76 | . . . . . . . . . . . 50 . . . 26 . . . . . . . . Parts Recycled . | . . . . . . . . . . . . . . . . . . . . . . . . Recycled Matter . | . . . . . . . . . . . . . . . . . . . . . . . . Retrieved Matter . | . . . . . . . . . . . . . . . . . . . . . . . . Retrieved Components . | . . . . . . . . . . . . . . . . . . . . . . . . Parts Scanalyzed 1 | . . . . . . . . . 1 . . . . . . . . . . . . . . Part Schematics Acquired 1 | . . . . . . . . . 1 . . . . . . . . . . . . . . Parts Damaged . | . . . . . . . . . . . . . . . . . . . . . . . . Bothacking | -11 -10 -10 -10 -9 -8 -8 -7 -7 -7 -7 -6 -6 -6 -6 -5 -5 -5 -5 -4 -4 -3 -2 -2 ------------ Run | Scr Mat Min Exi Min Mat Gar Fac Gar Fac Gar Fac Gar Fac Gar Fac Gar Fac Gar Fac Gar Res Res Gar Used RIF Installer 7 | . . . . . . 1 . 1 . 1 . 1 . 1 . 1 . . . 1 . . . Hotswap 1 | . . . . . . . . . . 1 . . . . . . . . . . . . . Signal Jammer 1 | . . . . . . . . . . . . . . 1 . . . . . . . . . Robot Detection 1 | . . . . . . . . . . . . 1 . . . . . . . . . . . Watcher Feeds 1 | . . . . . . . . 1 . . . . . . . . . . . . . . . Patrol Navigation 1 | . . . . . . . . . . . . . . . . . . . . 1 . . . Autoassimilate 1 | . . . . . . . . . . . . . . . . 1 . . . . . . . Robots Hacked 41 | . . . . . . . . . 1 . . 4 . 3 4 3 2 5 1 9 . 9 . Non-combat 9 | . . . . . . . . . 1 . . . . . 2 . 1 . 1 . . 4 . Combat 32 | . . . . . . . . . . . . 4 . 3 2 3 1 5 . 9 . 5 . Autoassimilated 5 | . . . . . . . . . . . . . . . . . . 1 . 3 . 1 . Robot Hacks Applied 38 | . . . . . . . . . 1 . . 4 . 3 5 3 2 5 1 6 . 8 . drop_inventory 3 | . . . . . . . . . . . . . . . . . 1 . 1 . . 1 . map_route 5 | . . . . . . . . . 1 . . . . . 1 . . . . . . 3 . find_garrison 2 | . . . . . . . . . . . . . . . 1 . 1 . . . . . . amplify_resonance 2 | . . . . . . . . . . . . 2 . . . . . . . . . . . go_dormant 3 | . . . . . . . . . . . . 1 . . 1 1 . . . . . . . overwrite_iff 10 | . . . . . . . . . . . . . . 1 1 1 . 2 . 5 . . . formatsys_low 1 | . . . . . . . . . . . . . . . 1 . . . . . . . . formatsys_high 12 | . . . . . . . . . . . . 1 . 2 . 1 . 3 . 1 . 4 . Relay Couplers Released 42 | . . . . . . . . 4 . 4 . 7 . 8 . 3 . 5 . 7 . . 4 Machine Destruction 42 | . . . . . . . . 4 . 4 . 7 . 8 . 3 . 5 . 7 . . 4 Attached 29 | . . . . . . . . 1 . . 1 3 . 4 1 1 . 5 1 5 . 3 4 Fabnet Peak Effective % . | . . . . . . . . . . . . . . . . . . . . . . . . Robots Rewired . | . . . . . . . . . . . . . . . . . . . . . . . . Allies Hacked 1 | . . . . . . . . . . . . . . . . . . 1 . . . . . Hacks Repelled . | . . . . . . . . . . . . . . . . . . . . . . . . Allies | -11 -10 -10 -10 -9 -8 -8 -7 -7 -7 -7 -6 -6 -6 -6 -5 -5 -5 -5 -4 -4 -3 -2 -2 -------- Run | Scr Mat Min Exi Min Mat Gar Fac Gar Fac Gar Fac Gar Fac Gar Fac Gar Fac Gar Fac Gar Res Res Gar Total Allies 27 | . . . . . . . . . . . . 1 . 3 2 2 . 5 . 9 . 5 . Largest Group 5 | . . . . . . . . . . . . 1 . 2 1 1 . 2 . 5 . 4 . Highest-Rated Group 244 | . . . . . . . . . . . . 32 . 76 41 49 . 58 . 244 . 232 . Highest-Rated Ally 64 | . . . . . . . . . . . . 32 . 47 41 49 . 29 . 56 . 64 . Total Orders 1 | . . . . . . . . . . . . . . . . 1 . . . . . . . ROAM 1 | . . . . . . . . . . . . . . . . 1 . . . . . . . Ally Attacks 121 | . . . . . . . . . . . . 5 . 12 12 8 . 16 . 40 . 28 . Total Damage 3488 | . . . . . . . . . . . . 106 . 337 368 150 . 247 . 1299 . 981 . Kills 21 | . . . . . . . . . . . . . . 4 2 3 . 2 . 5 . 5 . Allies Corrupted 2 | . . . . . . . . . . . . . . . . . . 1 . . . 1 . Allies Melted . | . . . . . . . . . . . . . . . . . . . . . . . . Intel | -11 -10 -10 -10 -9 -8 -8 -7 -7 -7 -7 -6 -6 -6 -6 -5 -5 -5 -5 -4 -4 -3 -2 -2 ------- Run | Scr Mat Min Exi Min Mat Gar Fac Gar Fac Gar Fac Gar Fac Gar Fac Gar Fac Gar Fac Gar Res Res Gar Robot Analysis Total . | . . . . . . . . . . . . . . . . . . . . . . . . Derelict Logs Recovered 2 | . . 1 . 1 . . . . . . . . . . . . . . . . . . . Drone Launches . | . . . . . . . . . . . . . . . . . . . . . . . . Drone Recoveries . | . . . . . . . . . . . . . . . . . . . . . . . . Exploration | -11 -10 -10 -10 -9 -8 -8 -7 -7 -7 -7 -6 -6 -6 -6 -5 -5 -5 -5 -4 -4 -3 -2 -2 ------------- Run | Scr Mat Min Exi Min Mat Gar Fac Gar Fac Gar Fac Gar Fac Gar Fac Gar Fac Gar Fac Gar Res Res Gar Turns Passed 8907 | 98 326 454 249 292 293 88 340 287 296 953 242 274 111 605 1166 349 75 498 159 286 75 979 412 Spaces Moved 8569 | 52 130 378 317 355 234 87 342 249 335 604 262 273 151 498 1204 460 126 427 263 306 143 1141 232 Core 229 | 4 . 97 . . . . . . . . . . . . . . . . . . . 90 38 Treads 381 | 48 130 203 . . . . . . . . . . . . . . . . . . . . . Legs . | . . . . . . . . . . . . . . . . . . . . . . . . Wheels . | . . . . . . . . . . . . . . . . . . . . . . . . Hover 7632 | . . 78 317 355 234 87 342 249 335 604 262 273 151 498 1204 460 126 427 263 306 143 872 46 Flight 327 | . . . . . . . . . . . . . . . . . . . . . . 179 148 Fastest Speed 31 | 50 160 50 76 76 72 72 63 63 63 63 63 63 63 65 45 45 45 40 55 48 38 31 40 Average Speed 64 | 151 160 114 76 76 72 72 63 65 65 69 63 63 63 65 58 45 52 53 55 52 45 56 46 Slowest Speed 160 | 160 160 160 76 76 72 72 72 72 72 72 63 63 65 65 125 45 53 55 55 62 48 131 100 Overloaded Moves 4 | . . . . . . . . . . . . . . . . . . 4 . . . . . Propulsion Burnouts . | . . . . . . . . . . . . . . . . . . . . . . . . Robots Hopped 8 | . . . . . . . . . . . . . . . . . . . . . . 8 . Cave-ins Triggered . | . . . . . . . . . . . . . . . . . . . . . . . . Exploration Rate (%) 33 | 4 31 68 70 70 17 30 8 39 15 57 10 40 5 63 29 55 7 50 9 49 6 30 36 Regions Visited 23 Branch Regions 3 Pre-discovered Areas 1 | . . . 1 . . . . . . . . . . . . . . . . . . . . Known Exits Taken 11 | . 1 . . . 1 . 1 . 1 . 1 . 1 . 1 . 1 . 1 . 1 1 . Unknown Exits Taken 4 | 1 . 1 1 1 . . . . . . . . . . . . . . . . . . . Scrap Searched 3 | . . 1 . 2 . . . . . . . . . . . . . . . . . . . Spaces Dug 117 | . . . . . 15 . 6 9 . 1 1 12 3 . 9 7 . 25 . . . 29 . Terrain Destroyed 311 | . 14 . . . 15 . 6 30 . 46 1 21 3 35 9 39 . 37 . . . 55 . Melee 27 | . . . . . . . 6 1 . 1 1 . 3 . 9 . . . . . . 6 . Projectile 1 | . . . . . . . . . . . . . . . . . . . . . . 1 . AOE 283 | . 14 . . . 15 . . 29 . 45 . 21 . 35 . 39 . 37 . . . 48 . Terrain Rammed 2 | . . . . . . . . . . . . . . . . . . . . . . . 2 Walls Destroyed . | . . . . . . . . . . . . . . . . . . . . . . . . Machines Disabled 1 | . . . . . . . . . . . . . . . . . . . . . . . 1 Actions | -11 -10 -10 -10 -9 -8 -8 -7 -7 -7 -7 -6 -6 -6 -6 -5 -5 -5 -5 -4 -4 -3 -2 -2 --------- Run | Scr Mat Min Exi Min Mat Gar Fac Gar Fac Gar Fac Gar Fac Gar Fac Gar Fac Gar Fac Gar Res Res Gar Total 11413 | 64 196 399 324 378 353 112 447 350 408 1098 324 355 162 765 1543 578 135 666 274 412 153 1381 536 Wait 1885 | . 21 . . 21 79 . 61 51 39 424 50 34 . 222 193 78 2 193 . 54 . 96 267 Move 8540 | 51 129 377 316 354 234 86 342 247 335 603 262 272 151 496 1204 459 126 426 263 305 142 1128 232 Hop 5 | . . . . . . . . . . . . . . . . . . . . . . 5 . Pick Up 122 | 4 6 10 2 2 9 . 8 2 6 3 1 4 1 8 26 5 2 3 2 3 1 14 . Fast Attach 79 | 7 . 3 2 . 3 . 2 1 5 2 1 . 1 . 13 . . 3 2 5 2 23 4 Attach 54 | . 1 3 2 . 4 . 5 3 1 2 1 2 1 1 2 3 2 . 1 2 1 12 5 Detach 11 | . 1 . . . 1 . 1 1 1 . . . . . 1 . . . . . . 1 4 Swap 79 | . 4 1 . . 4 . 3 2 6 13 . 7 . 7 6 5 . 9 1 1 1 9 . Drop 108 | . 2 5 2 1 11 . 6 2 10 4 . 4 3 7 21 1 1 1 2 1 4 20 . Fire 173 | 2 29 . . . 8 . 2 4 . 19 . 10 . 10 8 13 2 10 1 9 2 44 . Melee 211 | . . . . . . . 17 16 5 15 9 11 5 4 68 7 . 12 2 14 . 26 . Ram 4 | . . . . . . . . . . . . . . . 1 . . . . . . 1 2 Kick . | . . . . . . . . . . . . . . . . . . . . . . . . Crush 3 | . 3 . . . . . . . . . . . . . . . . . . . . . . Escape Stasis 130 | . . . . . . 26 . 21 . 13 . 11 . 9 . 6 . 6 . 16 . . 22 Rewire 9 | . . . . . . . . . . . . . . 1 . 1 . 3 . 2 . 2 . Trap . | . . . . . . . . . . . . . . . . . . . . . . . . Miscellaneous . | . . . . . . . . . . . . . . . . . . . . . . . . Route ------- -11/Scrapyard -10/Materials -10/Mines (discovered 2 exits: [*Mat] / *Exi) -10/Exiles -9/Mines -8/Materials (discovered 2 exits: Fac / Gar) -8/Garrison -7/Factory -7/Garrison -7/Factory (discovered 2 exits: [*Low] / Gar) -7/Garrison (discovered 3 exits: *Fac x3) -6/Factory -6/Garrison -6/Factory -6/Garrison (discovered 2 exits: *Fac x2) -5/Factory -5/Garrison (discovered 2 exits: *Fac x2) -5/Factory -5/Garrison (discovered 2 exits: *Fac x2) -4/Factory (discovered 3 exits: *Upp x2 / Gar) -4/Garrison -3/Research -2/Research -2/Garrison History --------- Turn | Location | Event 2 | -11/Scrapyard | Met Revision 17 11 | -11/Scrapyard | Discovered new exit (range 14) 99 | -11/Scrapyard | Entered Materials 301 | -10/Materials | Build established: Mutant 392 | -10/Materials | Discovered new exit (range 12) 424 | -10/Materials | Identified exit to Mines 425 | -10/Materials | Entered Mines 430 | -10/Mines | Met a Derelict bent on vengeance 438 | -10/Mines | Found the Drone Emporium 583 | -10/Mines | Discovered new exit (range 12) 750 | -10/Mines | Assembled infested the area 754 | -10/Mines | Released all parts (7) 783 | -10/Mines | Learned location of 1 exit from Materials 802 | -10/Mines | Met 8R-AWN 876 | -10/Mines | Discovered new exit (range 5) 879 | -10/Mines | Entered Exiles 898 | -10/Exiles | Welcomed by 8R-AWN 911 | -10/Exiles | Met EX-HEX 955 | -10/Exiles | Met EX-DEC 969 | -10/Exiles | Learned location of Zion (-7) 982 | -10/Exiles | Met EX-BIN 1008 | -10/Exiles | Aligned with FarCom system 1009 | -10/Exiles | Given EX-Vault access code 1028 | -10/Exiles | Opened EX-Vault 1035 | -10/Exiles | Found Skeleton Box 1052 | -10/Exiles | Warned to stay clear of 0b10 Research branches 1120 | -10/Exiles | Discovered new exit (range 12) 1128 | -10/Exiles | Left Exiles lab with Skeleton Box 1128 | -10/Exiles | Entered Mines 1356 | -9/Mines | Learned 2 Materials zone layouts 1416 | -9/Mines | Discovered new exit (range 3) 1420 | -9/Mines | Entered Materials 1420 | -8/Materials | Evolved 4 slots: Propulsion x1, Utility x3 1421 | -8/Materials | Identified exit to Factory 1713 | -8/Materials | Identified exit to Garrison 1713 | -8/Materials | Entered Garrison 1717 | -8/Garrison | Installed Relay Interface Framework 1796 | -8/Garrison | Discovered exit to Factory (range 8) 1801 | -8/Garrison | Entered Factory 1801 | -7/Factory | Evolved 2 slots: Propulsion x1, Utility x1 1933 | -7/Factory | Build established: Scavenger-Mutant 2036 | -7/Factory | Garrison activated, responded to threat 2141 | -7/Factory | Identified exit to Garrison 2141 | -7/Factory | Entered Garrison 2145 | -7/Garrison | Expanded RIF knowledge: Watcher Feeds 2182 | -7/Garrison | Triggered checkpoint 2209 | -7/Garrison | Garrison Relay disabled 2346 | -7/Garrison | Triggered checkpoint 2417 | -7/Garrison | Discovered new exit (range 15) 2426 | -7/Garrison | Identified exit to Factory 2428 | -7/Garrison | Entered Factory 2672 | -7/Factory | Discovered new exit (range 16) 2724 | -7/Factory | Identified exit to Garrison 2724 | -7/Factory | Entered Garrison 2748 | -7/Garrison | Triggered checkpoint 2841 | -7/Garrison | Triggered checkpoint 2898 | -7/Garrison | Discovered new exit (range 15) 2997 | -7/Garrison | Discovered new exit (range 15) 3148 | -7/Garrison | Build established: Mutant 3413 | -7/Garrison | Triggered checkpoint 3564 | -7/Garrison | Discovered new exit (range 8) 3573 | -7/Garrison | Expanded RIF knowledge: Hotswap 3598 | -7/Garrison | Triggered checkpoint 3641 | -7/Garrison | Garrison Relay disabled 3677 | -7/Garrison | Entered Factory 3677 | -6/Factory | Evolved 2 slots: Utility x2 3788 | -6/Factory | Repaired Cmb. Airjet 3843 | -6/Factory | Spotted B-75 Beast 3904 | -6/Factory | Build established: Bothacker-Mutant 3919 | -6/Factory | Identified exit to Garrison 3919 | -6/Factory | Entered Garrison 3959 | -6/Garrison | Triggered checkpoint 3983 | -6/Garrison | Garrison Relay disabled 4076 | -6/Garrison | Triggered checkpoint 4101 | -6/Garrison | Discovered new exit (range 10) 4111 | -6/Garrison | Expanded RIF knowledge: Robot Detection 4129 | -6/Garrison | Triggered checkpoint 4164 | -6/Garrison | Garrison Relay disabled 4193 | -6/Garrison | Entered Factory 4304 | -6/Factory | Identified exit to Garrison 4304 | -6/Factory | Entered Garrison 4447 | -6/Garrison | Build established: Botlord-Mutant 4566 | -6/Garrison | Triggered checkpoint 4582 | -6/Garrison | Discovered new exit (range 11) 4609 | -6/Garrison | Triggered checkpoint 4625 | -6/Garrison | Garrison Relay disabled 4781 | -6/Garrison | Discovered new exit (range 12) 4792 | -6/Garrison | Expanded RIF knowledge: Signal Jamming 4814 | -6/Garrison | Triggered checkpoint 4851 | -6/Garrison | Garrison Relay disabled 4909 | -6/Garrison | Entered Factory 4909 | -5/Factory | Accompanied by 1 ally 4909 | -5/Factory | Evolved 2 slots: Utility x2 5066 | -5/Factory | Spotted B-75 Beast 5427 | -5/Factory | Fabricated Cmb. Airjet? 5811 | -5/Factory | Repaired Lrg. Storage Unit 5913 | -5/Factory | Build established: Botlord-Scout 5990 | -5/Factory | System corruption reached 10% 6075 | -5/Factory | Identified exit to Garrison 6075 | -5/Factory | Entered Garrison 6118 | -5/Garrison | Garrison Relay disabled 6143 | -5/Garrison | Spotted B-75 Beast 6143 | -5/Garrison | Spotted B-75 Beast 6144 | -5/Garrison | Triggered checkpoint 6154 | -5/Garrison | Discovered new exit (range 8) 6287 | -5/Garrison | Triggered checkpoint 6343 | -5/Garrison | Triggered checkpoint 6371 | -5/Garrison | Discovered new exit (range 19) 6381 | -5/Garrison | Expanded RIF knowledge: Autoassimilate 6424 | -5/Garrison | Entered Factory 6499 | -5/Factory | Identified exit to Garrison 6499 | -5/Factory | Entered Garrison 6520 | -5/Garrison | Triggered checkpoint 6547 | -5/Garrison | Garrison Relay disabled 6605 | -5/Garrison | Discovered new exit (range 10) 6641 | -5/Garrison | Triggered checkpoint 6665 | -5/Garrison | Triggered checkpoint 6804 | -5/Garrison | Build established: Botlord-Mutant 6908 | -5/Garrison | Discovered new exit (range 9) 6997 | -5/Garrison | Entered Factory 6997 | -4/Factory | Evolved 2 slots: Utility x2 7014 | -4/Factory | Discovered new exit (range 15) 7046 | -4/Factory | Discovered new exit (range 6) 7126 | -4/Factory | Identified exit to Upper Caves 7156 | -4/Factory | Identified exit to Garrison 7156 | -4/Factory | Entered Garrison 7210 | -4/Garrison | Triggered checkpoint 7232 | -4/Garrison | Garrison Relay disabled 7266 | -4/Garrison | Triggered checkpoint 7274 | -4/Garrison | Spotted B-86 Titan 7275 | -4/Garrison | Triggered checkpoint 7282 | -4/Garrison | Triggered checkpoint 7284 | -4/Garrison | Triggered checkpoint 7350 | -4/Garrison | Discovered new exit (range 12) 7358 | -4/Garrison | Expanded RIF knowledge: Patrol Navigation 7374 | -4/Garrison | Triggered checkpoint 7416 | -4/Garrison | Garrison Relay disabled 7442 | -4/Garrison | Entered Research 7442 | -3/Research | Evolved 2 slots: Utility x2 7510 | -3/Research | Discovered new exit (range 15) 7517 | -3/Research | Identified exit to Research 7517 | -3/Research | Entered another Research area 7517 | -2/Research | Evolved 2 slots: Power x1, Utility x1 7968 | -2/Research | Lost 3 parts (1n1u1w) 8118 | -2/Research | Lost 5 parts (1p1n2u1w) 8312 | -2/Research | P-80 Master assimilated allied Warden 9a 8318 | -2/Research | System corruption reached 10% 8386 | -2/Research | Released all parts (13) 8388 | -2/Research | Core integrity fell below 50% 8407 | -2/Research | Lost 8 parts (2p2n3u1w) 8496 | -2/Research | Identified exit to Garrison 8496 | -2/Research | Entered Garrison 8522 | -2/Garrison | Triggered checkpoint 8522 | -2/Garrison | Lost 4 parts (1p3n) 8584 | -2/Garrison | Garrison Relay disabled 8897 | -2/Garrison | Spotted B-90 Cyclops 8899 | -2/Garrison | Core integrity fell below 20% 8900 | -2/Garrison | Triggered checkpoint 8908 | -2/Garrison | Destroyed by G-73 Enforcer with Heavy Laser Last Messages --------------- 08584_ Destabilizing: System corrupted (+2). 08586_ Acquired Relay Coupler [Hunter]. 08587_ %T/QSUO>YMTPD%VKPXVV,PW 08588_ Acquired Relay Coupler [Grunt]. 08590_ Acquired Relay Coupler [Sentry]. 08603_ M7NUCZUYJHRRCWUNYK:KTNEDGE JMPVK 08619_ System corrupted: Heat flow error (+292). 08637_ System corrupted: Heat flow error (+275). 08660_ System corrupted: Matter fused (-8). 08676_ 8NRY8XQ D>DSWMPJF92W4DQAXC5IP 08710_ P&9:AWWV CSD ZV55&FQI 08753_ System corrupted: Component data lost. 08803_ System corrupted: Substantial component data lost. 08820_ System corrupted: Energy discharge (-40). 08845_ System corrupted: Energy discharge (-36). 08867_ System corrupted: Matter fused (-6). 08896_ System corrupted: Matter fused (-8). 08899_ Imp. Antigrav System destroyed. 08900_ Beams of light sweep through the air. An alarm sounds. Garrison Door activated. Map ----- +----------------------------------------------------+ | ?????????????????????????????????????????????????? | | ?????????????????????????????????????????????????? | | ?????????????????????????????????????????????????? | | ?????????????????????????????????????????????????? | | ?????????????????????????????????????????????????? | | ?????????????????????????????????????????????????? | | ?????????????????????????????????????????????????? | | ?????????????????????????g???????????????????????? | | ?????????????????????????????????????????????????? | | ????????????????????????gg???????????????????????? | | ???????????????????????? ???????????????????????? | | ???????????????????????? g???????????????????????? | | ???????????????????????? ???????????????????????? | | ???????????????????????# ???????????????????????? | | ???????????????????????# ???????????????????????? | | ???????????????????????# #????????##????????????? | | ??????????????????????? ???????? #????????????? | | ???????????????????????# ???????? #????????????? | | ???????????????????????# #??????? #????????????? | | ???????????????????????# #??????? #????????????? | | ???????????????????????# #??????? #????????????? | | ???????????????????????# #??????? #????????????? | | ???????????sss?????????# #??????? #????????????? | | ???????????????????????# #??????? #????????????? | | ???????????????????????# #??#???? #??? #?? ???? | | ???????????????????????# @#? #??## ## ## ##?? | | ???????????????????????# ## #### s Y #?? | | ???????????????????????# ss ?? | | ???????????????????????# ss s ?? | | ???????????????????????######### ## #??? #?? | | ??????????????????????????????### ## ## #?? | | ??????????????????????????????# "g? | | ??????????????????????????????# BB "?? | | ??????????????????????????????# BB "?? | | ??????????????????????????????# "?? | | ??????????????????????????????### # ## #?? | | ??????????????????????########### ## #??? ??? | | ??????????????????????# ?? | | ??????????????????????# ?? | | ??????????????????????# ######## #?? | | ??????????????????????# #??????## ##""""######?? | | ??????????????????????# #???????# #?gg?????????? | | ????????????########### #???????# #????????????? | | ????????????# #???????# #????????????? | | ??????????### ######### #???????? #????????????? | | ??????????# #???????# #???????? #????????????? | | ??????????# #???????# ######### #????????????? | | ??????????# #???????# #????????????? | | ??????????### #???????# #????????????? | | ????????????# #???????# ############????????????? | +----------------------------------------------------+ Best States ------------- Heat Dissipation 68 Energy Generation 41 Energy Capacity 340 Matter Stores 300 Matter Capacity 450 Sight Range 22 Robot Scan Range 14 Terrain Scan Density 10 Armor Coverage 600 Melee Speed Boost 30 Evasion (%) 63 Melee Accuracy 8 Target Analysis 8 Core Analysis 6 Recoil Reduction 2 Offensive Hacking 20 Relay Coupler Types 7 Relay Coupler Value 239 Item Schematics ----------------- Cmb. Airjet | -7/Factory | Scanalyzed Robot Schematics ------------------ None Fabricated ------------ Cmb. Airjet | x2 | -5/Factory Alien Tech Used ----------------- None Achievements -------------- None Challenges ------------ None Game ------ Seed VortexConcussiveRecalibrator Manual? 0 Play Time 01:40:07 Cumulative 690.1 hours Start 2022.03.26 @ 09:48:31 End 2022.03.26 @ 11:30:34 Sessions 1 Manual Loads 0 Difficulty Rogue Special Mode None Game No. 1058 Rogue 1058 Adventurer 0 Explorer 0 Win Type - Total 65 Types 40/1/9/11/4/0/0/0/0 Lore% 87 Gallery% 87 Achievement% 83 Wizard Run 0 Options --------- ASCII 1 Keyboard 0 Movement Numpad Keybinds 0 Fullscreen 0 Font 14/SmallcapsGlow Map View 76x50 Tactical HUD 1 Map Filters NONE Filters NONE Steam 1 RUN: fe1b3b84-91b3-4ea5-8a60-f33961dca8e2